{"text_format":"1","workbook":"xlsx","n_sheets":4,"sheets":["template","import","start","п.3"],"not_rendered":{"charts":0,"images":0,"macros":1,"external_links":0,"defined_names":3,"comments":0,"pivot_tables":0},"unopened":[],"bounds":{"document_bytes":16777216,"sheet_cells":100000,"rows_first":2000,"rows_last":500,"rows_between":2000,"halvings":0,"cell_chars":16384,"cell_head_chars":4096},"cells_cut":0,"cells_raw":0,"read":"whole","date_system":"1900"}

{"sheet":"template","index":0,"n_rows":169,"n_cols":55,"rows_kept":169,"cut":false,"hidden":false,"merged":[[157,36,158,43],[96,44,101,49],[105,1,105,3],[162,1,162,3],[161,42,161,44],[153,44,158,49],[147,36,148,55],[149,36,152,43],[149,44,152,49],[149,50,152,55],[153,1,158,7],[153,8,158,14],[147,1,152,7],[153,50,158,55],[157,15,158,21],[157,22,158,28],[157,29,158,35],[90,15,95,21],[90,22,95,28],[74,3,74,7],[104,41,104,43],[96,1,101,7],[90,1,95,7],[90,8,95,14],[147,8,152,14],[147,29,152,35],[100,22,101,28],[100,29,101,35],[96,8,101,14],[98,15,99,21],[100,15,101,21],[96,22,97,28],[147,15,152,21],[147,22,152,28],[21,23,21,25],[92,36,95,43],[90,36,91,55],[92,44,95,49],[92,50,95,55],[90,29,95,35],[98,22,99,28],[96,15,97,21],[96,50,101,55],[98,36,99,43],[100,36,101,43],[96,36,97,43],[96,29,97,35],[98,29,99,35],[155,15,156,21],[155,22,156,28],[155,29,156,35],[155,36,156,43],[153,36,154,43],[153,15,154,21],[153,22,154,28],[153,29,154,35]]}
[]
[null,null,null,null,null,null,null,null,null,null,null,null,null,null,null,null,null,null,null,null,null,null,null,null,null,null,null,null,null,null,null,null,null,null,null,null,null,null,null,null,null,null,null,null,null,null,null,null,null,null,null,null,null,null,"ГОСТ 7473-2010"]
[]
[null,null,null,null,null,null,null,null,null,null,null,null,null,null,null,null,null,null,null,null,null,null,"ДОКУМЕНТ О КАЧЕСТВЕ"]
[null,null,null,null,null,null,null,null,null,null,null,null,null,null,null,null,"БЕТОННОЙ СМЕСИ ЗАДАННОГО КАЧЕСТВА "]
[null,null,null,null,null,null,null,null,null,null,null,null,null,null,null,null,null,null,null,null,null,null,null,null,"ПАРТИИ №"]
[]
[null,"Производитель и поставщик бетонной смеси, наименование, адрес, телефон, факс: "]
[null,"Юридический адрес: ООО «Трансстроймеханизация», 127282, г. Москва, ул. Киевская, д.7, к.2, "]
[null,"этаж  10, ком.6, телефон: +7(495) 892-37-62, факс: +7(495) 733-97-46, email: info@tsm-msk.ru "]
[null,"Фактический адрес: Московская обл., Ногинский район, произв. база «Ивашево»."]
[]
[null,"Потребитель:"]
[null,"наименование, адрес, телефон, факс:"]
[]
[null,"Дата и время отгрузки бетонной смеси, ч-мин:"]
[]
[null,"Вид бетонной смеси и её условное обозначение:"]
[]
[null,"Номер номинального состава бетонной смеси:"]
[]
[null,"Объем бетонной смеси в партии, м3: "]
[]
[null,"Марка бетонной смеси по удобоукладываемости или значение удобоукладываемости бетонной "]
[null,"смеси (по договору на поставку) на месте укладки у потребителя: "]
[]
[null,"Другие нормируемые показатели качества на месте укладки у потребителя: Vвозд.= 4-7%"]
[]
[null,"Сохраняемость удобоукладываемости и других нормируемых показателей, ч-мин:"]
[]
[null,"Наибольшая крупность заполнителя, мм:",null,null,null,null,null,null,null,null,null,null,null,null,null,null,null,null,null,null,null,null,null,null,null,"20 мм."]
[]
[null,"Декларация о соотствии № РОСС RU Д-RU.PA01.B.74324/21 Срок действия до 07.04.2026 г."]
[]
[null,"Проектный класс бетона по прочности и требуемая прочность бетона в партии:"]
[]
[null,"в проектном возрасте  28  сут.;",null,null,null,null,null,null,null,null,null,null,null,null,null,null,null,null,null,null,null,null,null,null,null,null,null,null,null,null,null,null,null,null,null,null,null,null,null,null,null,"Мпа"]
[null,null,null,null,null,null,null,null,null,null,null,null,null,null,null,null,null,null,null,"класс по прочности",null,null,null,null,null,null,null,null,null,null,null,null,null,null,null,null,null,"требуемая прочность"]
[]
[null,"в промежуточном возрасте (при необходимости)",null,null,null,null,null,null,null,null,null,null,null,null,null,null,null,null,null,null,null,null,null,null,null,null,null,null,null,null,null,null,"сут;",null,null,null,null,null,"% В; ",null,null,null,null,null,null,"Мпа"]
[]
[null,"Другие нормируемые показатели качества бетона (при необходимости):"]
[]
[null,"Наименование, масса добавки (в расчете на сухое вещество), кг/м3:"]
[]
[]
[null,"Класс материалов по удельной эффективной активности естественных"]
[null,"радионуклидов и значение Аэфф, Бк/кг: I класса до 370   "]
[]
[null,"Производитель гарантирует соответствие продукции требованиям ГОСТ 7473-2010 при условии "]
[null,"соблюдения правил транспортировки, приемки, укладки и ухода за бетонной смесью."]
[]
[null,null,null,null,null,null,null,null,null,null,null,null,null,null,null,null,null,null,null,null,null,null,null,null,null,null,null,null,null,null,null,null,null,null,null,null,null,null,null,null,null,"Дата выдачи:"]
[]
[]
[null,null,null,null,null,null,null,null,null,null,null,null,null,null,null,null,null,null,null,null,null,null,null,"подпись"]
[]
[null,null,null,null,null,null,null,null,null,null,null,null,null,null,null,null,null," ","Лаборатория ООО \"Транстроймезанизация\""]
[null,null,null,null,null,null,null,"Свидетельство об аккредитации №ИЛ/ЛРИ-02317*, действительно до 04.04.2028г"]
[null,null,null,null,null,null,null,"Юридический адрес: 127282, г. Москва, ул. Киевская, д.7 ,к.2, этаж 10, ком.6, телефон: +7 (495) 892-37-62"]
[null,null,null,null,null,null,null,"Фактический адрес: Московская обл., Павлово-Посадский р-н, производственная база «Большие Дворы»"]
[null,null,null,null,null,"Объект: М-12 «Строящаяся скоростная автомобильная дорога Москва - Нижний Новгород - Казань» «Строительство с "]
[null,null,null,null,null,"последующей эксплуатацией на платной основе «Нового выхода на МКАД с федеральной автомобильной дорогой М-7 "]
[null,null,null,null,null,"«Волга» на участке МКАД - км 60 (обходы г. Балашиха, Ногинск), Московская область». Пусковой комплекс №2. "]
[null,null,null,null,null,"Участок от МКАД до транспортной развязки с автомобильной дорогой А-113 Строящаяся Центральная кольцевая "]
[null,null,null,null,null,"автомобильная дорога (Московская область)»"]
[]
[null,null,null,null,null,null,null,null,null,null,null,null,null,null,null,null,null,null,null,null,null,null,null,null,null,null,null,null,null,null,null,null,null,null,null,null,null,null,null,null,null,null,null,null,null,null,null,null,null,null,"\"Утверждаю\""]
[null,null,null,null,null,null,null,null,null,null,null,null,null,null,null,null,null,null,null,null,null,null,null,null,null,null,null,null,null,null,null,null,null,null,null,null,null,null,null,null,null,null,null,null,null,null,null,null,"Начальник ОКиЛК"]
[null,null,null,null,null,null,null,null,null,null,null,null,null,null,null,null,null,null,null,null,null,null,null,null,null,null,null,null,null,null,null,null,null,null,null,null,null,null,null,null,null,null,null,null,null,"____________",null,null,null,null,null,"Князев К.И. "]
[]
[null,null,null,null,null,null,null,null,null,null,null,null,null,null,null,null,null,null,null,null,null,null,null,null,null,"ПРОТОКОЛ"]
[null,null,null,null,null,null,null,null,null,null,null,null,null,null,null,null,"испытания образцов бетона на прочность при сжатии"]
[]
[null,"от",null,null,null,null,null,null,"№"]
[]
[null,"1. Наименование подрядной организации:"]
[null,"2. Идентификация объекта: "]
[null,"3. Дата получения объекта: "]
[null,"4. Входящий регистрационный номер пробы:",null,null,null,null,null,null,null,null,null,null,null,null,null,null,null,null,null,null,null,null,"№"]
[null,"5. Дата испытания:"]
[null,"6. Место испытания:",null,null,null,null,null,null,null,null,null,"ОК и ЛК ООО «ТСМ»"]
[null,"7. Испытания (проверка) проводились в соответствии с ГОСТ 10180-2012 на оборудовании поверенном и откалиброванном в "]
[null,"соответствии с утвержденным графиком поверки на 2023г."]
[null,"8. Условия проведения испытаний: Т= 20 °С, W=61%"]
[null,"9. Испытательное оборудование и средства измерения: "]
[null,"Весы AJH-4200CE зав. №151253015 (поверка дествительна до 26.05.2024"]
[null,"Штангенциркуль ЩЦ-I-150-0,05(поверка дествительна до 26.05.2024"]
[null,"Пресс испытательный ТП-1-1500, зав. №1113 (поверка дествительна до 26.05.2024"]
[null,"10. Результаты испытаний:"]
[null,"Дата изготовления",null,null,null,null,null,null,"Дата  испытания",null,null,null,null,null,null,"Масса    образца, г",null,null,null,null,null,null,"Размеры образца, см",null,null,null,null,null,null,"Плотность бетона, кг/м3",null,null,null,null,null,null,"Предельная прочность бетона на сжатие, Мпа"]
[]
[null,null,null,null,null,null,null,null,null,null,null,null,null,null,null,null,null,null,null,null,null,null,null,null,null,null,null,null,null,null,null,null,null,null,null,null,"Отдельного образца с учетом маштабного коэффициента ",null,null,null,null,null,null,null,"среднее",null,null,null,null,null,"% от требуемой прочности"]
[]
[]
[]
[null,null,null,null,null,null,null,null,null,null,null,null,null,null,null,null,null,null,null,null,null,null,"10,0/10,0/10,0",null,null,null,null,null,null,{"$f":"P97","v":0},null,null,null,null,null,null,null,null,null,null,null,null,null,null,{"$f":"(SUM(LARGE(AK97:AR102,{1,2})))/2","v":{"$error":"#NUM!"}},null,null,null,null,null,{"$f":"AS97/32*100","v":{"$error":"#NUM!"}}]
[]
[null,null,null,null,null,null,null,null,null,null,null,null,null,null,null,null,null,null,null,null,null,null,"10,0/10,0/10,0",null,null,null,null,null,null,{"$f":"P99","v":0}]
[]
[null,null,null,null,null,null,null,null,null,null,null,null,null,null,null,null,null,null,null,null,null,null,"10,0/10,0/10,0",null,null,null,null,null,null,{"$f":"P101","v":0}]
[]
[]
[null,"11. Закличение: Контрольные образцы бетона, изготовленные при отборе пробы бетонной смеси"]
[null,"состав",null,null,null,null,null,null,null,null,null,"имеют среднее значение прочности на сжатие в возрасте 7 сут.",null,null,null,null,null,null,null,null,null,null,null,null,null,null,null,null,null,null,null,null,null,null,null,null,null,null,null,null,null,{"$f":"AS97","v":{"$error":"#NUM!"}},null,null,"Мпа",null,null,"что соответствует"]
[null,{"$f":"AY97","v":{"$error":"#NUM!"}},null,null,"%",null,"от требуемой проектной прочности "]
[]
[null,"12. Примечание: Настоящий протокол распространяется только на образцы, подвергнутые испытаниям (проверки и т.п.)."]
[null,"Не допускается частичная или полная перепечатка настоящего протокола без разрешения лаборатории ООО «Трансстроймеханизация». "]
[]
[]
[null,null,null,null,null,"Исполнитель:"]
[]
[]
[null,null,null,null,null,null,null,null,null,null,null,null,null,null,null,null,null," ","Лаборатория ООО \"Транстроймезанизация\""]
[null,null,null,null,null,null,null,"Свидетельство об аккредитации №ИЛ/ЛРИ-02317*, действительно до 04.04.2028г"]
[null,null,null,null,null,null,null,"Юридический адрес: 127282, г. Москва, ул. Киевская, д.7 ,к.2, этаж 10, ком.6, телефон: +7 (495) 892-37-62"]
[null,null,null,null,null,null,null,"Фактический адрес: Московская обл., Павлово-Посадский р-н, производственная база «Большие Дворы»"]
[null,null,null,null,null,"Объект: М-12 «Строящаяся скоростная автомобильная дорога Москва - Нижний Новгород - Казань» «Строительство с "]
[null,null,null,null,null,"последующей эксплуатацией на платной основе «Нового выхода на МКАД с федеральной автомобильной дорогой М-7 "]
[null,null,null,null,null,"«Волга» на участке МКАД - км 60 (обходы г. Балашиха, Ногинск), Московская область». Пусковой комплекс №2. "]
[null,null,null,null,null,"Участок от МКАД до транспортной развязки с автомобильной дорогой А-113 Строящаяся Центральная кольцевая "]
[null,null,null,null,null,"автомобильная дорога (Московская область)»"]
[]
[null,null,null,null,null,null,null,null,null,null,null,null,null,null,null,null,null,null,null,null,null,null,null,null,null,null,null,null,null,null,null,null,null,null,null,null,null,null,null,null,null,null,null,null,null,null,null,null,null,null,"\"Утверждаю\""]
[null,null,null,null,null,null,null,null,null,null,null,null,null,null,null,null,null,null,null,null,null,null,null,null,null,null,null,null,null,null,null,null,null,null,null,null,null,null,null,null,null,null,null,null,null,null,null,null,"Начальник ОКиЛК"]
[null,null,null,null,null,null,null,null,null,null,null,null,null,null,null,null,null,null,null,null,null,null,null,null,null,null,null,null,null,null,null,null,null,null,null,null,null,null,null,null,null,null,null,null,null,"____________",null,null,null,null,null,"Князев К.И. "]
[]
[null,null,null,null,null,null,null,null,null,null,null,null,null,null,null,null,null,null,null,null,null,null,null,null,null,"ПРОТОКОЛ"]
[null,null,null,null,null,null,null,null,null,null,null,null,null,null,null,null,"испытания образцов бетона на прочность при сжатии"]
[]
[null,"от",null,null,null,null,null,null,"№"]
[]
[null,"1. Наименование подрядной организации:",null,null,null,null,null,null,null,null,null,null,null,null,null,null,null,null,null,null,null,{"$f":"W14","v":0}]
[null,"2. Идентификация объекта: "]
[null,"3. Дата получения объекта: "]
[null,"4. Входящий регистрационный номер пробы:"]
[null,"5. Дата испытания:"]
[null,"6. Место испытания:",null,null,null,null,null,null,null,null,null,"ОК и ЛК ООО «ТСМ»"]
[null,"7. Испытания (проверка) проводились в соответствии с ГОСТ 10180-2012 на оборудовании поверенном и откалиброванном в "]
[null,"соответствии с утвержденным графиком поверки на 2023г."]
[null,"8. Условия проведения испытаний: Т= 20 °С, W=61%"]
[null,"9. Испытательное оборудование и средства измерения: "]
[null,"Весы AJH-4200CE зав. №151253015 (поверка дествительна до 26.05.2024"]
[null,"Штангенциркуль ЩЦ-I-150-0,05(поверка дествительна до 26.05.2024"]
[null,"Пресс испытательный ТП-1-1500, зав. №1113 (поверка дествительна до 26.05.2024"]
[null,"10. Результаты испытаний:"]
[null,"Дата изготовления",null,null,null,null,null,null,"Дата  испытания",null,null,null,null,null,null,"Масса    образца, г",null,null,null,null,null,null,"Размеры образца, см",null,null,null,null,null,null,"Плотность бетона, кг/м3",null,null,null,null,null,null,"Предельная прочность бетона на сжатие, Мпа"]
[]
[null,null,null,null,null,null,null,null,null,null,null,null,null,null,null,null,null,null,null,null,null,null,null,null,null,null,null,null,null,null,null,null,null,null,null,null,"Отдельного образца с учетом маштабного коэффициента ",null,null,null,null,null,null,null,"среднее",null,null,null,null,null,"% от требуемой прочности"]
[]
[]
[]
[null,null,null,null,null,null,null,null,null,null,null,null,null,null,null,null,null,null,null,null,null,null,"10,0/10,0/10,0",null,null,null,null,null,null,{"$f":"P154","v":0},null,null,null,null,null,null,null,null,null,null,null,null,null,null,{"$f":"(SUM(LARGE(AK154:AR159,{1,2})))/2","v":{"$error":"#NUM!"}},null,null,null,null,null,{"$f":"AS154/32*100","v":{"$error":"#NUM!"}}]
[]
[null,null,null,null,null,null,null,null,null,null,null,null,null,null,null,null,null,null,null,null,null,null,"10,0/10,0/10,0",null,null,null,null,null,null,{"$f":"P156","v":0}]
[]
[null,null,null,null,null,null,null,null,null,null,null,null,null,null,null,null,null,null,null,null,null,null,"10,0/10,0/10,0",null,null,null,null,null,null,{"$f":"P158","v":0}]
[]
[]
[null,"11. Закличение: Контрольные образцы бетона, изготовленные при отборе пробы бетонной смеси",null,null,null,null,null,null,null,null,null,null,null,null,null,null,null,null,null,null,null,null,null,null,null,null,null,null,null,null,null,null,null,null,null,null,null,null,null,null,null,null,null,null,null,null,null,{"$f":"AD18","v":0}]
[null,"состав",null,null,null,null,null,null,null,null,null,"имеют среднее значение прочности на сжатие в возрасте 28 сут.",null,null,null,null,null,null,null,null,null,null,null,null,null,null,null,null,null,null,null,null,null,null,null,null,null,null,null,null,null,null,{"$f":"AS154","v":{"$error":"#NUM!"}},null,null,"Мпа",null,"что соответствует"]
[null,{"$f":"AY154","v":{"$error":"#NUM!"}},null,null,"%",null,"от требуемой проектной прочности ",null,null,null,null,null,null,null,null,null,null,null,null,null,null,null,null,{"$f":"W37","v":0}]
[]
[null,"12. Примечание: Настоящий протокол распространяется только на образцы, подвергнутые испытаниям (проверки и т.п.)."]
[null,"Не допускается частичная или полная перепечатка настоящего протокола без разрешения лаборатории ООО «Трансстроймеханизация». "]
[]
[]
[null,null,null,null,null,"Исполнитель: "]

{"sheet":"import","index":1,"n_rows":6,"n_cols":20,"rows_kept":6,"cut":false,"hidden":false,"merged":[]}
["№","номер карты ","наименование смеси","дата отгрузки","объем отгрузки","7 сут","28сут","класс бетона ","подвижность ","проектная прочность ","сохраняемость ","потребитель","Исполнитель","должность","пластификатор","воздухововлекающая","плотность смеси","прочность на сжатие 7 сут","прочность на сжатие 28сут","Отметка"]
[1,"55 М-12/0","B25П2F2300W6","2023-08-01",5,{"$f":"D2+7","v":"2023-08-08"},{"$f":"D2+28","v":"2023-08-29"},{"$f":"LEFT(C2,3)","v":"B25"},"П2",{"$f":"RIGHT(H2,2)*1.28","v":32},"до 120 мин.","ООО \"Транстроймеханизация\"","Додонов П.А.","Ст. инженер ОКиЛК","Master Glenium 305-1,00%;","Master Air 125-0,10%.",{"$f":"RANDBETWEEN(3000,4000)","v":3052},{"$f":"RANDBETWEEN(2358,2684)/100","v":25.85},{"$f":"RANDBETWEEN(3358,3684)/100","v":35.380000000000003}]
[2,"58 М-12/0","B25П3F2300W6","2023-08-02",15,{"$f":"D3+7","v":"2023-08-09"},{"$f":"D3+28","v":"2023-08-30"},{"$f":"LEFT(C3,3)","v":"B25"},"П2",{"$f":"RIGHT(H3,2)*1.28","v":32},"до 120 мин.","ООО \"СТРОЙГАРАНД\"","Коваль А.Н.","Инженер ОКиЛК","Master Cast 205-1,00%;","Master Air 125-0,30%.",{"$f":"RANDBETWEEN(2245,2565)","v":2390},{"$f":"RANDBETWEEN(2458,2684)/100","v":26.51},{"$f":"RANDBETWEEN(3458,3684)/100","v":35.380000000000003}]
[3,"58 М-12/0","B35П4F2300W6","2023-08-06",50,{"$f":"D4+7","v":"2023-08-13"},{"$f":"D4+28","v":"2023-09-03"},{"$f":"LEFT(C4,3)","v":"B35"},"П4",{"$f":"RIGHT(H4,2)*1.28","v":44.800000000000004},"до 120 мин.","ООО \"Транстроймеханизация\"","Амелин Д.А.","Инженер ОКиЛК","Master Glenium 305-1,00%;","Master Air 125-0,10%.",{"$f":"RANDBETWEEN(2545,2765)","v":2696},{"$f":"RANDBETWEEN(3458,3884)/100","v":38.799999999999997},{"$f":"RANDBETWEEN(4658,5884)/100","v":58.47},"a"]
[4,"58 М-12/0","B35П4F2300W6","2023-08-06",50,{"$f":"D5+7","v":"2023-08-13"},{"$f":"D5+28","v":"2023-09-03"},{"$f":"LEFT(C5,3)","v":"B35"},"П4",{"$f":"RIGHT(H5,2)*1.28","v":44.800000000000004},"до 120 мин.","ООО \"Транстроймеханизация\"","Амелин Д.А.","Инженер ОКиЛК","Master Glenium 305-1,00%;","Master Air 125-0,10%.",{"$f":"RANDBETWEEN(2645,2865)","v":2723},{"$f":"RANDBETWEEN(3458,3884)/100","v":35.4},{"$f":"RANDBETWEEN(4658,5884)/100","v":55.9}]
[5,"45 М-12/0","B15П3F2300W6","2023-08-06",30,{"$f":"D6+7","v":"2023-08-13"},{"$f":"D6+28","v":"2023-09-03"},{"$f":"LEFT(C6,3)","v":"B15"},"П3",{"$f":"RIGHT(H6,2)*1.28","v":19.2},"до 120 мин.","ООО \"Транстроймеханизация\"","Додонов П.А.","Ст. инженер ОКиЛК","Master Glenium 305-1,00%;","Master Air 125-0,10%.",{"$f":"RANDBETWEEN(2345,2365)","v":2348},{"$f":"RANDBETWEEN(3458,3884)/100","v":34.9},{"$f":"RANDBETWEEN(4658,5884)/100","v":46.88}]

{"sheet":"start","index":2,"n_rows":0,"n_cols":0,"rows_kept":0,"cut":false,"hidden":false,"merged":[]}

{"sheet":"п.3","index":3,"n_rows":169,"n_cols":55,"rows_kept":169,"cut":false,"hidden":false,"merged":[[161,42,161,44],[162,1,162,3],[155,15,156,21],[155,22,156,28],[155,29,156,35],[155,36,156,43],[157,15,158,21],[157,22,158,28],[157,29,158,35],[157,36,158,43],[149,44,152,49],[149,50,152,55],[153,1,158,7],[153,8,158,14],[153,15,154,21],[153,22,154,28],[153,29,154,35],[153,36,154,43],[153,44,158,49],[153,50,158,55],[100,36,101,43],[104,41,104,43],[105,1,105,3],[147,1,152,7],[147,8,152,14],[147,15,152,21],[147,22,152,28],[147,29,152,35],[147,36,148,55],[149,36,152,43],[96,36,97,43],[96,44,101,49],[96,50,101,55],[98,15,99,21],[98,22,99,28],[98,29,99,35],[98,36,99,43],[100,15,101,21],[100,22,101,28],[100,29,101,35],[90,29,95,35],[90,36,91,55],[92,36,95,43],[92,44,95,49],[92,50,95,55],[96,1,101,7],[96,8,101,14],[96,15,97,21],[96,22,97,28],[96,29,97,35],[21,23,21,25],[74,3,74,7],[90,1,95,7],[90,8,95,14],[90,15,95,21],[90,22,95,28]]}
[]
[null,null,null,null,null,null,null,null,null,null,null,null,null,null,null,null,null,null,null,null,null,null,null,null,null,null,null,null,null,null,null,null,null,null,null,null,null,null,null,null,null,null,null,null,null,null,null,null,null,null,null,null,null,null,"ГОСТ 7473-2010"]
[]
[null,null,null,null,null,null,null,null,null,null,null,null,null,null,null,null,null,null,null,null,null,null,"ДОКУМЕНТ О КАЧЕСТВЕ"]
[null,null,null,null,null,null,null,null,null,null,null,null,null,null,null,null,"БЕТОННОЙ СМЕСИ ЗАДАННОГО КАЧЕСТВА "]
[null,null,null,null,null,null,null,null,null,null,null,null,null,null,null,null,null,null,null,null,null,null,null,null,"ПАРТИИ №",null,null,null,null,null,null,null,3]
[]
[null,"Производитель и поставщик бетонной смеси, наименование, адрес, телефон, факс: "]
[null,"Юридический адрес: ООО «Трансстроймеханизация», 127282, г. Москва, ул. Киевская, д.7, к.2, "]
[null,"этаж  10, ком.6, телефон: +7(495) 892-37-62, факс: +7(495) 733-97-46, email: info@tsm-msk.ru "]
[null,"Фактический адрес: Московская обл., Ногинский район, произв. база «Ивашево»."]
[]
[null,"Потребитель:"]
[null,"наименование, адрес, телефон, факс:",null,null,null,null,null,null,null,null,null,null,null,null,null,null,null,null,null,null,null,null,"ООО \"Транстроймеханизация\""]
[]
[null,"Дата и время отгрузки бетонной смеси, ч-мин:",null,null,null,null,null,null,null,null,null,null,null,null,null,null,null,null,null,null,null,null,null,null,null,null,null,null,"06.08.2023"]
[]
[null,"Вид бетонной смеси и её условное обозначение:",null,null,null,null,null,null,null,null,null,null,null,null,null,null,null,null,null,null,null,null,null,null,null,null,null,null,null,"B35П4F2300W6"]
[]
[null,"Номер номинального состава бетонной смеси:",null,null,null,null,null,null,null,null,null,null,null,null,null,null,null,null,null,null,null,null,null,null,null,null,null,null,null,"58 М-12/0"]
[]
[null,"Объем бетонной смеси в партии, м3: ",null,null,null,null,null,null,null,null,null,null,null,null,null,null,null,null,null,null,null,null,null,50]
[]
[null,"Марка бетонной смеси по удобоукладываемости или значение удобоукладываемости бетонной "]
[null,"смеси (по договору на поставку) на месте укладки у потребителя: ",null,null,null,null,null,null,null,null,null,null,null,null,null,null,null,null,null,null,null,null,null,null,null,null,null,null,null,null,null,null,null,null,null,null,null,null,null,"П4"]
[]
[null,"Другие нормируемые показатели качества на месте укладки у потребителя: Vвозд.= 4-7%"]
[]
[null,"Сохраняемость удобоукладываемости и других нормируемых показателей, ч-мин:",null,null,null,null,null,null,null,null,null,null,null,null,null,null,null,null,null,null,null,null,null,null,null,null,null,null,null,null,null,null,null,null,null,null,null,null,null,null,null,null,null,null,null,null,null,null,"до 120 мин."]
[]
[null,"Наибольшая крупность заполнителя, мм:",null,null,null,null,null,null,null,null,null,null,null,null,null,null,null,null,null,null,null,null,null,null,null,"20 мм."]
[]
[null,"Декларация о соотствии № РОСС RU Д-RU.PA01.B.74324/21 Срок действия до 07.04.2026 г."]
[]
[null,"Проектный класс бетона по прочности и требуемая прочность бетона в партии:"]
[]
[null,"в проектном возрасте  28  сут.;",null,null,null,null,null,null,null,null,null,null,null,null,null,null,null,null,null,null,null,null,"B35",null,null,null,null,null,null,null,null,null,null,null,null,null,null,null,44.800000000000004,null,null,"Мпа"]
[null,null,null,null,null,null,null,null,null,null,null,null,null,null,null,null,null,null,null,"класс по прочности",null,null,null,null,null,null,null,null,null,null,null,null,null,null,null,null,null,"требуемая прочность"]
[]
[null,"в промежуточном возрасте (при необходимости)",null,null,null,null,null,null,null,null,null,null,null,null,null,null,null,null,null,null,null,null,null,null,null,null,null,null,null,null,null,null,"сут;",null,null,null,null,null,"% В; ",null,null,null,null,null,null,"Мпа"]
[]
[null,"Другие нормируемые показатели качества бетона (при необходимости):"]
[]
[null,"Наименование, масса добавки (в расчете на сухое вещество), кг/м3:",null,null,null,null,null,null,null,null,null,null,null,null,null,null,null,null,null,null,null,null,null,null,null,null,null,null,null,null,null,null,null,null,null,null,null,null,null,null,null,"Master Glenium 305-1,00%;"]
[null,null,"Master Air 125-0,10%."]
[]
[null,"Класс материалов по удельной эффективной активности естественных"]
[null,"радионуклидов и значение Аэфф, Бк/кг: I класса до 370   "]
[]
[null,"Производитель гарантирует соответствие продукции требованиям ГОСТ 7473-2010 при условии "]
[null,"соблюдения правил транспортировки, приемки, укладки и ухода за бетонной смесью."]
[]
[null,null,null,null,null,null,null,null,null,null,null,null,null,null,null,null,null,null,null,null,null,null,null,null,null,null,null,null,null,null,null,null,null,null,null,null,null,null,null,null,null,"Дата выдачи:",null,null,null,null,null,null,null,null,"06.08.2023"]
[]
[null,null,null,null,"Инженер ОКиЛК",null,null,null,null,null,null,null,null,null,null,null,null,null,null,null,null,null,null,null,null,null,null,null,null,null,null,null,"Амелин Д.А."]
[null,null,null,null,null,null,null,null,null,null,null,null,null,null,null,null,null,null,null,null,null,null,null,"подпись"]
[]
[null,null,null,null,null,null,null,null,null,null,null,null,null,null,null,null,null," ","Лаборатория ООО \"Транстроймезанизация\""]
[null,null,null,null,null,null,null,"Свидетельство об аккредитации №ИЛ/ЛРИ-02317*, действительно до 04.04.2028г"]
[null,null,null,null,null,null,null,"Юридический адрес: 127282, г. Москва, ул. Киевская, д.7 ,к.2, этаж 10, ком.6, телефон: +7 (495) 892-37-62"]
[null,null,null,null,null,null,null,"Фактический адрес: Московская обл., Павлово-Посадский р-н, производственная база «Большие Дворы»"]
[null,null,null,null,null,"Объект: М-12 «Строящаяся скоростная автомобильная дорога Москва - Нижний Новгород - Казань» «Строительство с "]
[null,null,null,null,null,"последующей эксплуатацией на платной основе «Нового выхода на МКАД с федеральной автомобильной дорогой М-7 "]
[null,null,null,null,null,"«Волга» на участке МКАД - км 60 (обходы г. Балашиха, Ногинск), Московская область». Пусковой комплекс №2. "]
[null,null,null,null,null,"Участок от МКАД до транспортной развязки с автомобильной дорогой А-113 Строящаяся Центральная кольцевая "]
[null,null,null,null,null,"автомобильная дорога (Московская область)»"]
[]
[null,null,null,null,null,null,null,null,null,null,null,null,null,null,null,null,null,null,null,null,null,null,null,null,null,null,null,null,null,null,null,null,null,null,null,null,null,null,null,null,null,null,null,null,null,null,null,null,null,null,"\"Утверждаю\""]
[null,null,null,null,null,null,null,null,null,null,null,null,null,null,null,null,null,null,null,null,null,null,null,null,null,null,null,null,null,null,null,null,null,null,null,null,null,null,null,null,null,null,null,null,null,null,null,null,"Начальник ОКиЛК"]
[null,null,null,null,null,null,null,null,null,null,null,null,null,null,null,null,null,null,null,null,null,null,null,null,null,null,null,null,null,null,null,null,null,null,null,null,null,null,null,null,null,null,null,null,null,"____________",null,null,null,null,null,"Князев К.И. "]
[]
[null,null,null,null,null,null,null,null,null,null,null,null,null,null,null,null,null,null,null,null,null,null,null,null,null,"ПРОТОКОЛ"]
[null,null,null,null,null,null,null,null,null,null,null,null,null,null,null,null,"испытания образцов бетона на прочность при сжатии"]
[]
[null,"от",null,"13.08.2023",null,null,null,null,"№",null,null,3]
[]
[null,"1. Наименование подрядной организации:",null,null,null,null,null,null,null,null,null,null,null,null,null,null,null,null,null,null,null,"ООО \"Транстроймеханизация\""]
[null,"2. Идентификация объекта: "]
[null,"3. Дата получения объекта: ",null,null,null,null,null,null,null,null,null,null,null,null,null,"06.08.2023"]
[null,"4. Входящий регистрационный номер пробы:",null,null,null,null,null,null,null,null,null,null,null,null,null,null,null,null,null,null,null,null,"№",null,3]
[null,"5. Дата испытания:",null,null,null,null,null,null,null,null,null,"13.08.2023"]
[null,"6. Место испытания:",null,null,null,null,null,null,null,null,null,"ОК и ЛК ООО «ТСМ»"]
[null,"7. Испытания (проверка) проводились в соответствии с ГОСТ 10180-2012 на оборудовании поверенном и откалиброванном в "]
[null,"соответствии с утвержденным графиком поверки на 2023г."]
[null,"8. Условия проведения испытаний: Т= 20 °С, W=61%"]
[null,"9. Испытательное оборудование и средства измерения: "]
[null,"Весы AJH-4200CE зав. №151253015 (поверка дествительна до 26.05.2024"]
[null,"Штангенциркуль ЩЦ-I-150-0,05(поверка дествительна до 26.05.2024"]
[null,"Пресс испытательный ТП-1-1500, зав. №1113 (поверка дествительна до 26.05.2024"]
[null,"10. Результаты испытаний:"]
[null,"Дата изготовления",null,null,null,null,null,null,"Дата  испытания",null,null,null,null,null,null,"Масса    образца, г",null,null,null,null,null,null,"Размеры образца, см",null,null,null,null,null,null,"Плотность бетона, кг/м3",null,null,null,null,null,null,"Предельная прочность бетона на сжатие, Мпа"]
[]
[null,null,null,null,null,null,null,null,null,null,null,null,null,null,null,null,null,null,null,null,null,null,null,null,null,null,null,null,null,null,null,null,null,null,null,null,"Отдельного образца с учетом маштабного коэффициента ",null,null,null,null,null,null,null,"среднее",null,null,null,null,null,"% от требуемой прочности"]
[]
[]
[]
[null,"06.08.2023",null,null,null,null,null,null,"13.08.2023",null,null,null,null,null,null,{"$f":"RANDBETWEEN(2545,2765)","v":2549},null,null,null,null,null,null,"10,0/10,0/10,0",null,null,null,null,null,null,{"$f":"P97","v":2549},null,null,null,null,null,null,{"$f":"RANDBETWEEN(4658,5884)/100","v":52.38},null,null,null,null,null,null,null,{"$f":"(SUM(LARGE(AK97:AR102,{1,2})))/2","v":52.515000000000001},null,null,null,null,null,{"$f":"AS97/32*100","v":164.109375}]
[]
[null,null,null,null,null,null,null,null,null,null,null,null,null,null,null,{"$f":"RANDBETWEEN(2545,2765)","v":2650},null,null,null,null,null,null,"10,0/10,0/10,0",null,null,null,null,null,null,{"$f":"P99","v":2650},null,null,null,null,null,null,{"$f":"RANDBETWEEN(4658,5884)/100","v":52.65}]
[]
[null,null,null,null,null,null,null,null,null,null,null,null,null,null,null,{"$f":"RANDBETWEEN(2545,2765)","v":2713},null,null,null,null,null,null,"10,0/10,0/10,0",null,null,null,null,null,null,{"$f":"P101","v":2713},null,null,null,null,null,null,{"$f":"RANDBETWEEN(4658,5884)/100","v":49.49}]
[]
[]
[null,"11. Закличение: Контрольные образцы бетона, изготовленные при отборе пробы бетонной смеси",null,null,null,null,null,null,null,null,null,null,null,null,null,null,null,null,null,null,null,null,null,null,null,null,null,null,null,null,null,null,null,null,null,null,null,null,null,null,null,null,null,null,null,null,null,"B35П4F2300W6"]
[null,"состав",null,null,null,"58 М-12/0",null,null,null,null,null,"имеют среднее значение прочности на сжатие в возрасте 7 сут.",null,null,null,null,null,null,null,null,null,null,null,null,null,null,null,null,null,null,null,null,null,null,null,null,null,null,null,null,null,{"$f":"AS97","v":52.515000000000001},null,null,"Мпа",null,null,"что соответствует"]
[null,{"$f":"AY97","v":164.109375},null,null,"%",null,"от требуемой проектной прочности ",null,null,null,null,null,null,null,null,null,null,null,null,null,null,null,null,"B35"]
[]
[null,"12. Примечание: Настоящий протокол распространяется только на образцы, подвергнутые испытаниям (проверки и т.п.)."]
[null,"Не допускается частичная или полная перепечатка настоящего протокола без разрешения лаборатории ООО «Трансстроймеханизация». "]
[]
[]
[null,null,null,null,null,"Исполнитель:",null,null,null,null,null,null,"Инженер ОКиЛК",null,null,null,null,null,null,null,null,null,null,null,null,null,null,null,null,null,null,null,null,null,null,null,null,"Амелин Д.А."]
[]
[]
[null,null,null,null,null,null,null,null,null,null,null,null,null,null,null,null,null," ","Лаборатория ООО \"Транстроймезанизация\""]
[null,null,null,null,null,null,null,"Свидетельство об аккредитации №ИЛ/ЛРИ-02317*, действительно до 04.04.2028г"]
[null,null,null,null,null,null,null,"Юридический адрес: 127282, г. Москва, ул. Киевская, д.7 ,к.2, этаж 10, ком.6, телефон: +7 (495) 892-37-62"]
[null,null,null,null,null,null,null,"Фактический адрес: Московская обл., Павлово-Посадский р-н, производственная база «Большие Дворы»"]
[null,null,null,null,null,"Объект: М-12 «Строящаяся скоростная автомобильная дорога Москва - Нижний Новгород - Казань» «Строительство с "]
[null,null,null,null,null,"последующей эксплуатацией на платной основе «Нового выхода на МКАД с федеральной автомобильной дорогой М-7 "]
[null,null,null,null,null,"«Волга» на участке МКАД - км 60 (обходы г. Балашиха, Ногинск), Московская область». Пусковой комплекс №2. "]
[null,null,null,null,null,"Участок от МКАД до транспортной развязки с автомобильной дорогой А-113 Строящаяся Центральная кольцевая "]
[null,null,null,null,null,"автомобильная дорога (Московская область)»"]
[]
[null,null,null,null,null,null,null,null,null,null,null,null,null,null,null,null,null,null,null,null,null,null,null,null,null,null,null,null,null,null,null,null,null,null,null,null,null,null,null,null,null,null,null,null,null,null,null,null,null,null,"\"Утверждаю\""]
[null,null,null,null,null,null,null,null,null,null,null,null,null,null,null,null,null,null,null,null,null,null,null,null,null,null,null,null,null,null,null,null,null,null,null,null,null,null,null,null,null,null,null,null,null,null,null,null,"Начальник ОКиЛК"]
[null,null,null,null,null,null,null,null,null,null,null,null,null,null,null,null,null,null,null,null,null,null,null,null,null,null,null,null,null,null,null,null,null,null,null,null,null,null,null,null,null,null,null,null,null,"____________",null,null,null,null,null,"Князев К.И. "]
[]
[null,null,null,null,null,null,null,null,null,null,null,null,null,null,null,null,null,null,null,null,null,null,null,null,null,"ПРОТОКОЛ"]
[null,null,null,null,null,null,null,null,null,null,null,null,null,null,null,null,"испытания образцов бетона на прочность при сжатии"]
[]
[null,"от",null,"03.09.2023",null,null,null,null,"№",null,3]
[]
[null,"1. Наименование подрядной организации:",null,null,null,null,null,null,null,null,null,null,null,null,null,null,null,null,null,null,null,"ООО \"Транстроймеханизация\""]
[null,"2. Идентификация объекта: "]
[null,"3. Дата получения объекта: ",null,null,null,null,null,null,null,null,null,null,null,null,null,"06.08.2023"]
[null,"4. Входящий регистрационный номер пробы:",null,null,null,null,null,null,null,null,null,null,null,null,null,null,null,null,null,null,null,null,3]
[null,"5. Дата испытания:",null,null,null,null,null,null,null,null,null,"03.09.2023"]
[null,"6. Место испытания:",null,null,null,null,null,null,null,null,null,"ОК и ЛК ООО «ТСМ»"]
[null,"7. Испытания (проверка) проводились в соответствии с ГОСТ 10180-2012 на оборудовании поверенном и откалиброванном в "]
[null,"соответствии с утвержденным графиком поверки на 2023г."]
[null,"8. Условия проведения испытаний: Т= 20 °С, W=61%"]
[null,"9. Испытательное оборудование и средства измерения: "]
[null,"Весы AJH-4200CE зав. №151253015 (поверка дествительна до 26.05.2024"]
[null,"Штангенциркуль ЩЦ-I-150-0,05(поверка дествительна до 26.05.2024"]
[null,"Пресс испытательный ТП-1-1500, зав. №1113 (поверка дествительна до 26.05.2024"]
[null,"10. Результаты испытаний:"]
[null,"Дата изготовления",null,null,null,null,null,null,"Дата  испытания",null,null,null,null,null,null,"Масса    образца, г",null,null,null,null,null,null,"Размеры образца, см",null,null,null,null,null,null,"Плотность бетона, кг/м3",null,null,null,null,null,null,"Предельная прочность бетона на сжатие, Мпа"]
[]
[null,null,null,null,null,null,null,null,null,null,null,null,null,null,null,null,null,null,null,null,null,null,null,null,null,null,null,null,null,null,null,null,null,null,null,null,"Отдельного образца с учетом маштабного коэффициента ",null,null,null,null,null,null,null,"среднее",null,null,null,null,null,"% от требуемой прочности"]
[]
[]
[]
[null,"06.08.2023",null,null,null,null,null,null,"03.09.2023",null,null,null,null,null,null,{"$f":"RANDBETWEEN(2545,2765)","v":2709},null,null,null,null,null,null,"10,0/10,0/10,0",null,null,null,null,null,null,{"$f":"P154","v":2709},null,null,null,null,null,null,{"$f":"RANDBETWEEN(4658,5884)/100","v":57.94},null,null,null,null,null,null,null,{"$f":"(SUM(LARGE(AK154:AR159,{1,2})))/2","v":54.555},null,null,null,null,null,{"$f":"AS154/32*100","v":170.484375}]
[]
[null,null,null,null,null,null,null,null,null,null,null,null,null,null,null,{"$f":"RANDBETWEEN(2545,2765)","v":2718},null,null,null,null,null,null,"10,0/10,0/10,0",null,null,null,null,null,null,{"$f":"P156","v":2718},null,null,null,null,null,null,{"$f":"RANDBETWEEN(4658,5884)/100","v":49.94}]
[]
[null,null,null,null,null,null,null,null,null,null,null,null,null,null,null,{"$f":"RANDBETWEEN(2545,2765)","v":2724},null,null,null,null,null,null,"10,0/10,0/10,0",null,null,null,null,null,null,{"$f":"P158","v":2724},null,null,null,null,null,null,{"$f":"RANDBETWEEN(4658,5884)/100","v":51.17}]
[]
[]
[null,"11. Закличение: Контрольные образцы бетона, изготовленные при отборе пробы бетонной смеси",null,null,null,null,null,null,null,null,null,null,null,null,null,null,null,null,null,null,null,null,null,null,null,null,null,null,null,null,null,null,null,null,null,null,null,null,null,null,null,null,null,null,null,null,null,"B35П4F2300W6"]
[null,"состав",null,null,null,"58 М-12/0",null,null,null,null,null,"имеют среднее значение прочности на сжатие в возрасте 28 сут.",null,null,null,null,null,null,null,null,null,null,null,null,null,null,null,null,null,null,null,null,null,null,null,null,null,null,null,null,null,null,{"$f":"AS154","v":54.555},null,null,"Мпа",null,"что соответствует"]
[null,{"$f":"AY154","v":170.484375},null,null,"%",null,"от требуемой проектной прочности ",null,null,null,null,null,null,null,null,null,null,null,null,null,null,null,null,"B35"]
[]
[null,"12. Примечание: Настоящий протокол распространяется только на образцы, подвергнутые испытаниям (проверки и т.п.)."]
[null,"Не допускается частичная или полная перепечатка настоящего протокола без разрешения лаборатории ООО «Трансстроймеханизация». "]
[]
[]
[null,null,null,null,null,"Исполнитель: ",null,null,null,null,null,null,"Инженер ОКиЛК",null,null,null,null,null,null,null,null,null,null,null,null,null,null,null,null,null,null,null,null,null,null,null,null,"Амелин Д.А."]